Cogmind - Beta 17.1 --- EXPLORER MODE // 2026.08.25 @ 01:59:46 Player: deadbabe Result: Destroyed by Y-45 Defender with Beam Rifle Performance ------------- Evolutions (1) 500 Regions Visited (4) 800 Robots Destroyed (85) 425 Value Destroyed (1946) 1946 Prototype IDs (2) 40 Alien Tech Used (0) 0 Bonus (200) 200 TOTAL SCORE: 3911 Bonus ------- Entered Garrisons 200 Cogmind --------- Core Integrity 0/400 Matter 263/300 Energy 75/100 System Corruption 0% Temperature Cool (21) Movement Core (1400) Ox27 Location -9/Garrison Parts ------- > --- POWER (1) -------- (None) > --- PROPULSION (3) --- (None) > --- UTILITY (4) ------ Huge Storage Unit Visual Processing Unit > --- WEAPON (2) ------- Particle Cannon > --- INVENTORY (25) --- Ion Engine Light Treads Aluminum Leg Aluminum Leg Improved Aluminum Leg Hover Unit Hover Unit Flight Unit Improved Flight Unit Cooling System Large Matter Pod (150) Structural Scanner Sensor Array Targeting Computer Targeting Computer ECM Suite Light Armor Plating Small Laser Small Laser Beam Rifle Light Assault Rifle Heavy Assault Rifle Welding Torch Plasma Cutter Peak State ------------ > --- POWER ------------ Improved Ion Engine > --- PROPULSION ------- Light Treads Light Treads Light Treads > --- UTILITY ---------- Huge Storage Unit Visual Processing Unit Light Armor Plating Drone Bay > --- WEAPON ----------- Heavy Assault Rifle Maul > --- INVENTORY -------- Light Treads Aluminum Leg Aluminum Leg Improved Aluminum Leg Wheel Hover Unit Hover Unit Flight Unit Improved Flight Unit Cooling System Large Matter Pod Structural Scanner Sensor Array Targeting Computer Targeting Computer ECM Suite Light Armor Plating EM Shotgun Small Laser Small Laser Beam Rifle Particle Cannon Light Assault Rifle Heavy Assault Rifle Welding Torch [Rating: 21] Favorites ----------- Power Light Ion Engine Engine Light Ion Engine Propulsion Wheel Treads Light Treads Leg Aluminum Leg Wheel Wheel Hover Unit Hover Unit Flight Unit Flight Unit Utility Light Armor Plating Device Terrain Scanner Storage Huge Storage Unit Processor Visual Processing Unit Hackware Hacking Suite Protection Light Armor Plating Weapon Light Assault Rifle Energy Gun Small Laser Energy Cannon Particle Cannon Ballistic Gun Light Assault Rifle Ballistic Cannon Light Cannon Special Weapon Mining Laser Impact Weapon Maul Slashing Weapon Mining Claw Special Melee Weapon Datajack Build | -11 -10 -9 -9 -9 ------- Run | Yrd Mat Mat Sto Gar Slots Evolved 3 | . 1 2 . . Power . | . . . . . Propulsion 1 | . . 1 . . Utility 2 | . 1 1 . . Weapon . | . . . . . Parts Attached 56 | 8 20 15 12 1 Power 6 | 1 1 3 1 . Engine 6 | 1 1 3 1 . Core . | . . . . . Reactor . | . . . . . Propulsion 23 | 2 9 7 5 . Treads 5 | . . . 5 . Leg 3 | . . 3 . . Wheel 9 | 2 3 4 . . Hover 5 | . 5 . . . Flight 1 | . 1 . . . Utility 13 | 2 5 4 2 . Device 3 | 1 . 1 1 . Storage 5 | . 5 . . . Processor 2 | . . 2 . . Hackware 1 | . . 1 . . Protection 2 | 1 . . 1 . Artifact . | . . . . . Weapon 14 | 3 5 1 4 1 Energy Gun 2 | 2 . . . . Energy Cannon 1 | . . . . 1 Ballistic Gun 6 | . 2 1 3 . Ballistic Cannon 1 | . 1 . . . Launcher . | . . . . . Special Weapon 1 | 1 . . . . Impact Weapon 1 | . . . 1 . Slashing Weapon 1 | . 1 . . . Piercing Weapon . | . . . . . Special Melee Weapon 1 | . 1 . . . Unidentified Prototypes . | . . . . . Parts Lost 15 | . . 4 7 4 Power 2 | . . 1 . 1 Propulsion 5 | . . 1 3 1 Utility 6 | . . 2 3 1 Weapon 2 | . . . 1 1 Highest Loss Streak 4 | . . 2 4 3 To Critical Strikes . | . . . . . Average Backups 15 | 3 10 18 24 24 Power . | . . . . . Propulsion 4 | 1 1 5 8 8 Utility 5 | . 4 6 8 8 Weapon 4 | . 3 5 6 5 Tool/Special . | . . . . . Unused Backups 18 | . 3 . 1 14 Power 2 | . 1 . . 1 Propulsion 4 | . 2 . . 2 Utility 7 | . . . . 7 Weapon 3 | . . . 1 2 Tool/Special 2 | . . . . 2 Average Slot Usage (%) 93 | . 97 91 87 88 Engine 10 | . 11 8 10 9 Treads 7 | . . . 25 30 Wheel 8 | . 3 25 3 . Hover 10 | . 20 . . . Device 6 | . 7 10 3 . Storage 13 | . 16 10 10 10 Processor 5 | . . 11 10 10 Protection 7 | . 11 2 3 9 Energy Gun 1 | . 4 . . . Ballistic Gun 10 | . 11 9 10 9 Ballistic Cannon 3 | . 6 1 . . Impact Weapon 1 | . . . 2 10 Slashing Weapon 3 | . . 7 7 . Peak Build Rating 21 | 7 9 17 21 16 Average Rating 11 | 4 8 12 16 15 On Entrance 9 | . 7 9 17 16 Avg Prop Armor Cover (%) 8 | . 4 9 10 . Naked Turns . | . . . . . Heaviest Build 102 | 9 91 93 102 96 Greatest Support 60 | 20 26 33 60 60 Greatest Overweight (x) 8 | . 8 4 4 1 Average Overweight (x) 2 | . 2 2 1 1 Largest Inventory Capacity 25 | 5 25 25 25 25 Average Capacity 20 | 5 16 25 25 25 Most Carried 25 | 5 16 23 25 25 Average Carried 15 | 3 10 18 24 24 Final Capacity 25 | 5 25 25 25 25 Final Carried 25 | 5 15 23 25 24 Class Distribution -------------------- 61% | Hacker-Mutant 38% | Scavenger-Mutant Dominant Class ---------------- Hacker-Mutant | -10/Materials Scavenger-Mutant | -9/Materials Scavenger-Mutant | -9/Storage Scavenger-Mutant | -9/Garrison Resources | -11 -10 -9 -9 -9 ----------- Run | Yrd Mat Mat Sto Gar Matter Collected 1910 | 290 674 476 439 31 Remotely . | . . . . . Salvage Created 2932 | 143 666 605 1175 343 Parts 188 | 13 37 42 72 24 Haulers Intercepted 1 | . 1 . . . Recyclers Shooed 6 | . 3 2 1 . Parts Field Recycled . | . . . . . Retrieved Matter . | . . . . . Parts Self-Destructed . | . . . . . Prevented . | . . . . . Parts Restored . | . . . . . Kills | -11 -10 -9 -9 -9 ------- Run | Yrd Mat Mat Sto Gar Combat Hostiles Destroyed 51 | 1 8 12 20 10 Guns 48 | 1 7 12 19 9 Cannons 1 | . 1 . . . AOE 1 | . . . 1 . Classes Destroyed 12 | 3 5 3 . 1 Worker 10 | 1 4 2 3 . Builder 4 | . 2 2 . . Tunneler 4 | 3 1 . . . Hauler 1 | . 1 . . . Recycler 6 | . 2 1 3 . Operator 1 | . . 1 . . Watcher 8 | . 3 3 2 . Swarmer 9 | . 2 2 2 3 Grunt 28 | 1 6 7 9 5 Brawler 1 | . . . . 1 Duelist 2 | . . 1 . 1 Sentry 11 | . . 2 9 . Best Kill Streak 6 | 4 3 5 6 4 Combat Bots Only 4 | 1 2 4 4 4 Max Kills in Single Turn 1 | 1 1 1 1 1 Gunslinging . | . . . . . Exploded 1 | . . . 1 . Melee . | . . . . . Uniques/NPCs Destroyed . | . . . . . Combat | -11 -10 -9 -9 -9 -------- Run | Yrd Mat Mat Sto Gar Hostile Shots Fired 407 | 3 40 77 185 102 Missed 107 | . 17 18 44 28 Hits 300 | 3 23 59 141 74 Melee 16 | . . 8 . 8 Projectile 284 | 3 23 51 141 66 AOE 1 | . . . 1 . Critical Strikes 8 | . 1 3 1 3 Damage Taken 2438 | 19 196 545 1138 540 Core 447 | 6 37 137 131 136 Absorbed by Shields . | . . . . . Ignored by Resistances 1542 | 13 119 339 718 353 Regen/Repaired (Parts) 102 | . 71 31 . . Core Remaining (%) 89 | 97 82 . . . Volleys Fired 337 | 10 94 86 118 29 Largest 2 | 2 2 2 1 1 Hottest 80 | 80 80 50 23 68 Shots Fired 409 | 20 129 113 118 29 Gun 367 | 20 117 86 118 26 Cannon 42 | . 12 27 . 3 Launcher . | . . . . . Special . | . . . . . Kinetic 352 | . 95 113 118 26 Thermal 57 | 20 34 . . 3 Explosive . | . . . . . Electromagnetic . | . . . . . Robot Hit Streak 28 | 14 22 28 19 23 Robot Miss Streak 2 | 1 2 2 1 1 Penetration Max . | . . . . . Secondary Targets . | . . . . . Shots Hit Robots 362 | 17 112 99 107 27 Core Hits 140 | 6 46 34 41 13 Critical Kills 1 | . 1 . . . Critical Parts Destroyed 4 | . 1 1 1 1 Critical Strikes 5 | . 2 1 1 1 Destroy 4 | . 2 1 1 . Smash 1 | . . . . 1 Melee Attacks 13 | . 10 1 1 1 Impact 1 | . . . . 1 Slashing 2 | . . 1 1 . Piercing . | . . . . . Sneak Attacks 9 | . 8 1 . . Combat Hostiles . | . . . . . Follow-up Attacks . | . . . . . Damage Inflicted 4539 | 187 982 1334 1598 438 Guns 3859 | 187 822 902 1598 350 Cannons 588 | . 141 384 . 63 Explosions . | . . . . . Melee 73 | . . 48 . 25 Ramming 19 | . 19 . . . Kinetic 3907 | . 673 1286 1598 350 Thermal 540 | 187 290 . . 63 Explosive . | . . . . . Electromagnetic . | . . . . . Impact 25 | . . . . 25 Slashing 48 | . . 48 . . Piercing . | . . . . . Highest Corruption 1 | . 1 . . . Average Corruption 1 | . 1 . . . Corruption Purged . | . . . . . Corruption Blocked . | . . . . . Effects 12 | . 12 . . . Message Errors 2 | . 2 . . . Matter Fused 4 | . 4 . . . Heat Flow Errors 1 | . 1 . . . Energy Discharges 3 | . 3 . . . Parts Fused 1 | . 1 . . . Alerts 1 | . 1 . . . Overload Shots . | . . . . . Overflow Damage 35 | . 4 6 . 25 Projectiles 10 | . 4 6 . . Explosions . | . . . . . Melee 25 | . . . . 25 Knockbacks 10 | . . 9 . 1 Impact 1 | . . . . 1 Kinetic 9 | . . 9 . . Secondary . | . . . . . Self-Inflicted Damage 9 | . 9 . . . Shots . | . . . . . Rammed 3 | . 3 . . . Targets Rammed 3 | . 3 . . . Kicked . | . . . . . Crushed . | . . . . . Highest Temperature 280 | 154 280 32 10 45 Average Temperature 38 | 78 43 9 2 14 Received Heat Transfer 1353 | 18 174 285 687 189 Siege Activations . | . . . . . Martial Activations . | . . . . . Shielding Activations . | . . . . . Robots Disrupted . | . . . . . Combat Hostiles . | . . . . . Robots Corrupted 1 | . . . . 1 Combat Hostiles 1 | . . . . 1 Parts Fried 1 | . . . . 1 Impact Corruptions 2 | . . . . 2 Robots Melted . | . . . . . Combat Hostiles . | . . . . . Parts Melted 1 | 1 . . . . Heat Transferred 1186 | 425 650 . . 111 Parts Sabotaged . | . . . . . Parts Stolen . | . . . . . Parts Stripped . | . . . . . Power Chain Reactions . | . . . . . Alert | -11 -10 -9 -9 -9 ------- Run | Yrd Mat Mat Sto Gar Maximum Alert Level . | . . . . . Low Security (%) 100 | 100 100 100 100 100 Level 1 . | . . . . . Level 2 . | . . . . . Level 3 . | . . . . . Level 4 . | . . . . . Level 5 . | . . . . . High Security . | . . . . . Max Security . | . . . . . Peak Influence 190 | 20 65 82 72 190 Initial . | . . . . . Average 12 | 4 2 11 20 59 Influence Increases 1529 | 40 305 365 599 220 Destroy 0b10 Robot/C 1020 | 20 160 240 400 200 Destroy 0b10 Robot/NC 170 | 20 65 45 40 . Destroy Leader 258 | . 48 66 124 20 Successful Hack 36 | . 2 14 20 . Lose Combat Pursuer 45 | . 30 . 15 . Influence Decreases 1349 | 40 305 365 599 40 Time Decay 1257 | 40 305 360 552 . Lost Part 92 | . . 5 47 40 Squads Dispatched 11 | . 1 5 5 . Investigation 3 | . 1 2 . . Extermination . | . . . . . Reinforcement 5 | . . 3 2 . Assault . | . . . . . Garrison 3 | . . . 3 . Intercept . | . . . . . Searches Triggered . | . . . . . Construction Impeded . | . . . . . Haulers Reinforced . | . . . . . Active Scanning Responses . | . . . . . Cargo Convoy Interrupts . | . . . . . Stealth | -11 -10 -9 -9 -9 --------- Run | Yrd Mat Mat Sto Gar Distress Signals 5 | . 1 3 1 . Communications Jammed . | . . . . . Distress Signals . | . . . . . Times Spotted 83 | 1 16 22 27 17 Peak Tracking Total 8 | 1 3 5 3 8 Tactical Retreats 6 | . 2 3 1 . ECM-based Alert Blocks 5 | . . 5 . . Traps | -11 -10 -9 -9 -9 ------- Run | Yrd Mat Mat Sto Gar Traps Triggered 7 | . 4 . . 3 Indirectly . | . . . . . Trap Hack Attempts 1 | . 1 . . . Triggered . | . . . . . Disarmed . | . . . . . Reprogrammed . | . . . . . Reused . | . . . . . Traps Extracted . | . . . . . Installed . | . . . . . Triggered . | . . . . . Machines | -11 -10 -9 -9 -9 ---------- Run | Yrd Mat Mat Sto Gar Machines Disabled . | . . . . . Max in Single Turn . | . . . . . Machines Repaired . | . . . . . Machines Dismantled . | . . . . . Machines Sabotaged . | . . . . . Overloaded Fab Kills . | . . . . . Hacking | -11 -10 -9 -9 -9 --------- Run | Yrd Mat Mat Sto Gar Machines Accessed 15 | . 6 3 6 . Terminals 10 | . 4 1 5 . Fabricators . | . . . . . Repair Stations 2 | . 1 1 . . Recycling Units 1 | . 1 . . . Scanalyzers 1 | . . 1 . . Garrison Access 1 | . . . 1 . Total Hacks 38 | . 13 11 14 . Successful 33 | . 12 10 11 . Failed 5 | . 1 1 3 . Catastrophic . | . . . . . Database Lockouts . | . . . . . Manual . | . . . . . Terminals 24 | . 8 3 13 . Fabricators . | . . . . . Repair Stations 8 | . 4 4 . . Recycling Units 1 | . 1 . . . Scanalyzers 4 | . . 4 . . Garrison Access 1 | . . . 1 . Terminal Hacks 21 | . 8 3 10 . Record 6 | . 4 . 2 . Part Schematic 2 | . . . 2 . Prototype ID Bank 1 | . . . 1 . Open Door 1 | . . . 1 . Emergency Access Points 2 | . 1 1 . . Alert Level 1 | . . 1 . . Locate Traps 3 | . 2 . 1 . Dispatch Records 1 | . 1 . . . Extermination Status 1 | . . . 1 . Recall Investigation 1 | . . . 1 . Zone Layout 2 | . . 1 1 . Fabricator Hacks . | . . . . . Repair Station Hacks 8 | . 4 4 . . Scan Component 5 | . 2 3 . . Repair 3 | . 2 1 . . Recycling Unit Hacks . | . . . . . Scanalyzer 3 | . . 3 . . Insert Component 1 | . . 1 . . Analyze 1 | . . 1 . . Retrieve Study 1 | . . 1 . . Garrison Access Hacks 1 | . . . 1 . Unlock Access 1 | . . . 1 . Unauthorized Hacks . | . . . . . Terminals . | . . . . . Fabricators . | . . . . . Repair Stations . | . . . . . Recycling Units . | . . . . . Scanalyzers . | . . . . . Garrison Access . | . . . . . Data Cores Recovered . | . . . . . Used . | . . . . . Hacking Detections 10 | . 4 2 4 . Full Trace Events 3 | . 1 2 . . Feedback Events . | . . . . . Feedback Blocked . | . . . . . Robot Schematics Acquired . | . . . . . Robots Built . | . . . . . Authchips . | . . . . . Time . | . . . . . Total Robot Build Rating . | . . . . . Part Schematics Acquired 3 | . . 1 2 . Parts Built . | . . . . . Authchips . | . . . . . Time . | . . . . . Total Part Build Rating . | . . . . . Part Studies Acquired 1 | . . 1 . . Parts Repaired 3 | . 2 1 . . Time 84 | . 52 32 . . Parts Recycled . | . . . . . Recycled Matter . | . . . . . Retrieved Matter . | . . . . . Retrieved Components . | . . . . . Parts Scanalyzed 1 | . . 1 . . Part Schematics Acquired 1 | . . 1 . . Parts Damaged . | . . . . . Bothacking | -11 -10 -9 -9 -9 ------------ Run | Yrd Mat Mat Sto Gar Used RIF Installer . | . . . . . Robots Hacked 3 | . 3 . . . Non-combat 3 | . 3 . . . Combat . | . . . . . Robot Hacks Applied 5 | . 5 . . . parse_system 3 | . 3 . . . no_distress 2 | . 2 . . . Relay Couplers Released . | . . . . . Fabnet Peak Effective % . | . . . . . Robots Rewired . | . . . . . Allies Hacked . | . . . . . Hacks Repelled . | . . . . . Allies | -11 -10 -9 -9 -9 -------- Run | Yrd Mat Mat Sto Gar Total Allies . | . . . . . Largest Group . | . . . . . Highest-Rated Group . | . . . . . Highest-Rated Ally . | . . . . . Total Orders . | . . . . . Ally Attacks . | . . . . . Total Damage . | . . . . . Kills . | . . . . . Allies Corrupted . | . . . . . Allies Melted . | . . . . . Intel | -11 -10 -9 -9 -9 ------- Run | Yrd Mat Mat Sto Gar Active Infowar (turns) 4658 | 23 1719 1322 1127 467 Optics 2080 | . . 486 1127 467 Terrain 2540 | 23 1719 798 . . ECM 537 | . . 537 . . Robot Analysis Total . | . . . . . Derelict Logs Recovered . | . . . . . Drone Launches . | . . . . . Drone Recoveries . | . . . . . Exploration | -11 -10 -9 -9 -9 ------------- Run | Yrd Mat Mat Sto Gar Turns Passed 5978 | 143 2919 1322 1127 467 Spaces Moved 3019 | 119 1519 829 386 166 Core 23 | 18 5 . . . Treads 492 | . . . 326 166 Legs 47 | . . 47 . . Wheels 1312 | 101 369 782 60 . Hover 1131 | . 1131 . . . Flight 14 | . 14 . . . Fastest Speed 50 | 50 56 110 110 240 Average Speed 166 | 75 171 130 224 240 Slowest Speed 680 | 80 680 330 480 240 Overloaded Moves . | . . . . . Propulsion Burnouts . | . . . . . Robots Hopped . | . . . . . Potential Cave-ins . | . . . . . Cave-ins Triggered . | . . . . . Exploration Rate (%) 38 | 6 88 29 49 19 Regions Visited 4 Branch Regions 1 Pre-discovered Areas . | . . . . . Known Exits Taken 4 | 1 1 1 1 . Unknown Exits Taken . | . . . . . Scrap Searched . | . . . . . Spaces Dug . | . . . . . Terrain Destroyed . | . . . . . Melee . | . . . . . Projectile . | . . . . . AOE . | . . . . . Terrain Rammed . | . . . . . Walls Destroyed . | . . . . . Machines Disabled . | . . . . . Actions | -11 -10 -9 -9 -9 --------- Run | Yrd Mat Mat Sto Gar Total 3555 | 151 1709 960 530 205 Wait 3 | . . 3 . . Move 3015 | 118 1518 828 385 166 Hop . | . . . . . Pick Up 70 | 13 29 20 7 1 Fast Attach 12 | . 6 . 6 . Attach 33 | 8 12 10 2 1 Detach 2 | . 1 1 . . Swap 29 | 1 16 8 4 . Drop 31 | 1 19 3 7 1 Fire 337 | 10 94 86 118 29 Melee 13 | . 10 1 1 1 Ram 3 | . 3 . . . Kick . | . . . . . Crush . | . . . . . Escape Stasis 6 | . . . . 6 Rewire . | . . . . . Trap 1 | . 1 . . . Miscellaneous . | . . . . . Route ------- -11/Scrapyard -10/Materials (discovered 4 exits: *Mat x3 / *Min) -9/Materials (discovered 2 exits: *Min / *Sto) -9/Storage -9/Garrison History --------- Turn | Location | Event 2 | -11/Scrapyard | Met Revision 17 62 | -11/Scrapyard | Identified exit to Materials 62 | -11/Scrapyard | Discovered exit to Materials (range 8) 144 | -11/Scrapyard | Entered Materials 144 | -10/Materials | Evolved 1 slot: Utility x1 320 | -10/Materials | Build established: Hacker-Mutant 333 | -10/Materials | Identified exit to Materials 333 | -10/Materials | Discovered exit to Materials (range 7) 708 | -10/Materials | Repaired Lgt. Ion Engine? 765 | -10/Materials | Repaired Lgt. Armor Plating 791 | -10/Materials | Identified exit to Mines 791 | -10/Materials | Discovered exit to Mines (range 16) 1703 | -10/Materials | Discovered exit to Materials (range 15) 1960 | -10/Materials | Discovered exit to Materials (range 8) 3063 | -10/Materials | Entered another Materials area 3063 | -9/Materials | Evolved 2 slots: Propulsion x1, Utility x1 3677 | -9/Materials | Repaired Hvy. Assault Rifle 3701 | -9/Materials | Identified exit to Storage 3701 | -9/Materials | Discovered exit to Storage (range 10) 3849 | -9/Materials | Identified exit to Mines 3849 | -9/Materials | Discovered exit to Mines (range 16) 3958 | -9/Materials | Build established: Scavenger-Mutant 4385 | -9/Materials | Entered Storage 4534 | -9/Storage | Lost 4 parts (1n2u1w) 4789 | -9/Storage | Core integrity fell below 50% 5004 | -9/Storage | Garrison activated, responded to threat 5495 | -9/Storage | Identified exit to Garrison 5512 | -9/Storage | Entered Garrison 5622 | -9/Garrison | Triggered checkpoint 5842 | -9/Garrison | Triggered checkpoint 5904 | -9/Garrison | Triggered checkpoint 5970 | -9/Garrison | Core integrity fell below 20% 5979 | -9/Garrison | Destroyed by Y-45 Defender with Beam Rifle Last Messages --------------- G-34 Mercenary destroyed. Lgt. Armor Plating destroyed. B-36 Bruiser destroyed. Acquired 13 matter. Hvy. Assault Rifle destroyed. Imp. Ion Engine destroyed. S-10 Pest destroyed. Lgt. Treads severed. L-31 Rogue suffers critical hit (Smash). Destroyed Katana. Destroyed Melee Analysis Suite. L-31 Rogue system corrupted by crushing effect. L-31 Rogue knocked back. L-31 Rogue system terminally corrupted. [Achievement: Power Corrupts] Imp. Ion Engine fried. S-10 Pest destroyed. Lgt. Treads destroyed. Maul severed. [Achievement: First Step to Greatness] Map ----- +----------------------------------------------------+ | ?????????????????????????????????????????????????? | | ?????????????????????????????????????????????????? | | ?????????????????????????????????????????????????? | | ?????????????????????????????????????????????????? | | ??????????????????????? ????????????????????????? | | ??????????????????????? ????????????????????????? | | ??????????????????????# ????????????????????????? | | ??????????????????????# #???????????????????????? | | ??????????????????????# #??????????#????????????? | | ??????????????????????# #????????? #????????????? | | ??????????????????????# #???????? #????????????? | | ??????????????????????+ #???????? #????????????? | | ??????????????????????# #??????? #????????????? | | ?????????????????????## ##""""## #????????????? | | ?????????????????##### #####????????? | | ?????????????????? ?????????? | | ???????????????????? ???????????? | | ?????????????????????# ## #? #????????????? | | ???????????????????### ## ## #????????????? | | ???????????????????#*== "????????????? | | ???????????????????#%== = "????????????? | | ???????????????????#=![ %* "????????????? | | ???????????????????#%*!Y ! "????????????? | | ???????#####???????###=%*## ## #????????????? | | ???????#"T"########### =## ## #########????? | | ???????#" %@*g #??? | | ???????##### ^ sl=/% #??? | | ???????????# ######## =*%s ######## #??? | | ???????????# #??????## ## % ######????????????? | | ???????????# #???????# ##C CC#?????????????????? | | ?########### #???????# #######?????????????????? | | ?# #???????# #???????????????????????? | | ## ######### #???????# #???????????????????????? | | =%!#???????# #???????# #???????????????????????? | | %= #???????# ######### #???????????????????????? | | ![=#???????# #???????????????????????? | | #???????# #???????????????????????? | | ## #???????# ############???????????????????????? | | ?# #???????# #??????????????????????????????????? | | ?# ######??# #??????????????????????????????????? | | ?# ^ #??# #??????????????????????????????????? | | ?### ##??# #??????????????????????????????????? | | ??#"""""#??# #??????????????????????????????????? | | ??#######??# #??????????????????????????????????? | | ???????????# #??????????????????????????????????? | | ???????????# #??????????????????????????????????? | | ???????????# #??????????????????????????????????? | | ??########## #??????????????????????????????????? | | ??# #??????????????????????????????????? | | ??# #??????????????????????????????????? | +----------------------------------------------------+ Best States ------------- Heat Dissipation 28 Energy Generation 12 Energy Capacity 265 Matter Stores 500 Matter Capacity 500 Sight Range 18 Terrain Scan Range 14 Terrain Scan Density 10 ECM Strength 1 Armor Coverage 150 Resistance: KI 35 Resistance: TH 35 Resistance: EX 35 Resistance: EM 35 Resistance: I 35 Resistance: S 35 Resistance: P 35 Evasion (%) 53 Targeting Accuracy 5 Recoil Reduction 3 Offensive Hacking 30 Item Schematics ----------------- Targeting Computer | -9/Materials | Scanalyzed Target Analyzer | -9/Storage | Hacked Ion Cannon | -9/Storage | Hacked Robot Schematics ------------------ None Fabricated ------------ Nothing Repaired ---------- Lgt. Ion Engine | 17% | -10/Materials Lgt. Armor Plating | 57% | -10/Materials Hvy. Assault Rifle | 73% | -9/Materials Studied --------- Ion Engine | -9/Materials | Hacked Alien Tech Used ----------------- None Achievements -------------- First Step to Greatness Junior Dev Power Corrupts Spot Them First There's More Where That Came From Challenges ------------ None Game ------ Seed WeldingCoolingRocket Manual? 0 Play Time 01:03:53 Cumulative 1.5 hours Start 2026.08.25 @ 00:09:59 End 2026.08.25 @ 01:59:46 Sessions 3 Manual Loads 0 Difficulty Explorer Special Mode None Game No. 3 Rogue 0 Adventurer 0 Explorer 3 Win Type - Total 0 Types 0/0/0/0/0/0/0/0/0/0 Lore% 1 Gallery% 5 Achievement% 6 Wizard Run 0 Options --------- Layout 0 ASCII 0 Keyboard 0 Movement Mouse Keybinds 0 Fullscreen 1 Font 18/SmallcapsGlow Map View 76x50 Zoom Use 0% Tactical HUD 0 Map Filters NONE Filters NONE Steam 1 RUN: 41148740-7095-40d3-ae5e-ca57ddc9a831